bitfinex/quotes_BTCUSD_20251224
["timestamp","ask_amount","ask_price","bid_price","bid_amount"]
[1766536216380,0.0114499,87337.0,87328.0,0.3571]
[1766536217297,0.01145003,87336.0,87328.0,0.36855108]
[1766536217679,0.01145003,87336.0,87328.0,0.3571]
[1766536218686,0.01145003,87336.0,87328.0,0.36855108]
[1766536219347,0.01145029,87334.0,87328.0,0.3571]
[1766536220294,0.01145016,87335.0,87328.0,0.3571]
[1766536224609,0.01145029,87334.0,87328.0,0.3571]
[1766536225014,0.01145016,87335.0,87328.0,0.3571]
[1766536225816,0.01145042,87333.0,87328.0,0.3571]
[1766536226017,0.01145055,87332.0,87328.0,0.356651]
[1766536226578,0.01145055,87332.0,87327.0,0.01148]
[1766536228535,0.01145068,87331.0,87327.0,0.01148]
[1766536229192,0.01145081,87330.0,87327.0,0.01148]
[1766536229365,0.01145068,87331.0,87327.0,0.01148]
[1766536229570,0.01145055,87332.0,87327.0,0.01148]
[1766536229968,0.01145042,87333.0,87327.0,0.01148]
[1766536230175,0.01145029,87334.0,87327.0,0.01148]
[1766536230378,0.01145016,87335.0,87327.0,0.01148]
[1766536230552,0.01145029,87334.0,87327.0,0.01148]
[1766536230959,0.43775991,87337.0,87327.0,0.01148]
[1766536231165,0.3805099,87337.0,87328.0,0.01145108]
[1766536231829,0.3805099,87337.0,87328.0,0.02293108]
[1766536232028,0.01144963,87339.0,87330.0,0.01145081]
[1766536232266,0.0686986,87338.0,87337.0,0.000549]
[1766536232613,0.0114499,87337.0,87329.0,0.36218]
[1766536233664,0.0114499,87337.0,87329.0,0.37363094]
[1766536233849,0.06869514,87343.0,87328.0,0.02293108]
[1766536233850,0.01144898,87344.0,87337.0,0.000549]
[1766536234183,0.01144898,87344.0,87336.0,0.36218]
[1766536234353,0.01144898,87344.0,87334.0,0.01145029]
[1766536234734,0.01144898,87344.0,87334.0,0.02293029]
[1766536234919,0.01144924,87342.0,87334.0,0.01093]
[1766536235328,0.01144937,87341.0,87334.0,0.01093]
[1766536236338,0.01144924,87342.0,87334.0,0.01093]
[1766536236569,0.0114495,87340.0,87334.0,0.01093]
[1766536237104,0.01144937,87341.0,87334.0,0.01093]
[1766536237323,0.01144924,87342.0,87334.0,0.01093]
[1766536237722,0.35932,87341.0,87334.0,0.01093]
[1766536237934,0.0114495,87340.0,87334.0,0.01093]
[1766536238296,0.01144963,87339.0,87334.0,0.01093]
[1766536238523,0.0114495,87340.0,87334.0,0.01093]
[1766536239340,0.01144963,87339.0,87334.0,0.01093]
[1766536239683,0.01144976,87338.0,87334.0,0.01093]
[1766536239878,0.01144963,87339.0,87334.0,0.01093]
[1766536240304,0.01127072,87339.0,87334.0,0.01093]
[1766536241520,0.01144963,87339.0,87334.0,0.01093]
[1766536242128,0.0114499,87337.0,87334.0,0.01093]
[1766536242327,0.01145003,87336.0,87333.0,0.01148]
[1766536242533,0.01145042,87333.0,87322.0,0.36069]
[1766536242748,0.01145003,87336.0,87317.0,0.01145252]
[1766536242749,0.01145121,87327.0,87317.0,0.01145252]
[1766536242890,0.01145121,87327.0,87296.0,0.1487]
[1766536242891,0.35932,87324.0,87310.0,0.01145344]
[1766536243100,0.01145252,87317.0,87310.0,0.01148]
[1766536243502,0.02516143,87318.0,87310.0,0.01148]
[1766536243719,0.37077357,87309.0,87299.0,0.36069]
[1766536243922,0.01145344,87310.0,87291.0,0.40649]
[1766536243923,0.01145488,87299.0,87291.0,0.40649]
[1766536244204,0.01145462,87301.0,87299.0,0.000549]
[1766536244417,0.01145488,87299.0,87293.0,0.01148]
[1766536244627,0.01145475,87300.0,87293.0,0.01148]
[1766536245509,0.01145488,87299.0,87293.0,0.01148]
[1766536245736,0.01145501,87298.0,87293.0,0.01148]
[1766536245943,0.01145488,87299.0,87293.0,0.01148]
[1766536246092,0.01145488,87299.0,87290.0,0.01148]
[1766536246093,0.01145514,87297.0,87290.0,0.01148]
[1766536246300,0.37077567,87293.0,87286.0,0.00025129]
[1766536246510,0.35932,87291.0,87286.0,0.00025129]
[1766536246782,0.37077619,87289.0,87286.0,1.29e-06]
[1766536247460,0.01148,87288.0,87286.0,1.29e-06]
[1766536247599,0.35932,87287.0,87286.0,1.29e-06]
[1766536251449,0.358771,87287.0,87286.0,1.29e-06]
[1766536251868,0.01148,87288.0,87286.0,1.29e-06]
[1766536253158,0.01148,87289.0,87286.0,1.29e-06]
[1766536253319,0.01148,87289.0,87288.0,0.00055]
[1766536253734,0.01148,87289.0,87286.0,1.29e-06]
[1766536254133,0.02293619,87289.0,87286.0,1.29e-06]
[1766536254342,0.01148,87289.0,87286.0,1.29e-06]
[1766536254682,0.02293619,87289.0,87286.0,1.29e-06]
[1766536255869,0.01148,87289.0,87286.0,1.29e-06]
[1766536256271,0.01148,87291.0,87287.0,0.36069]
[1766536256469,0.01145514,87297.0,87288.0,0.01145632]
[1766536256633,0.35932,87300.0,87290.0,0.01145606]
[1766536256634,0.01148,87296.0,87290.0,0.01145606]
[1766536256838,0.01145436,87303.0,87294.0,0.36069]
[1766536257095,0.01145449,87302.0,87294.0,0.36069]
[1766536257403,0.01145462,87301.0,87294.0,0.36069]
[1766536257581,0.01145449,87302.0,87294.0,0.36069]
[1766536257774,0.02293436,87303.0,87294.0,0.36069]
[1766536258202,0.01145567,87293.0,87286.0,1.29e-06]
[1766536258356,0.01145606,87290.0,87287.0,0.01148]
[1766536259188,0.26047,87293.0,87287.0,0.01148]
[1766536260211,0.01145593,87291.0,87287.0,0.01148]
[1766536260545,0.01145606,87290.0,87287.0,0.01148]
[1766536261762,0.01145567,87293.0,87287.0,0.01148]
[1766536261968,0.01145554,87294.0,87290.0,0.00055]
[1766536262097,0.01145567,87293.0,87290.0,0.00055]
[1766536262299,0.01145554,87294.0,87287.0,0.01148]
[1766536263840,0.0114554,87295.0,87287.0,0.01148]
[1766536264039,0.0114554,87295.0,87287.0,0.27273]
[1766536266725,0.01145554,87294.0,87287.0,0.27273]
[1766536267132,0.0114554,87295.0,87287.0,0.27273]
[1766536270602,0.01145554,87294.0,87287.0,0.27273]
[1766536270807,0.01145567,87293.0,87287.0,0.27273]
[1766536272011,0.0114558,87292.0,87287.0,0.27273]
[1766536272447,0.01145567,87293.0,87287.0,0.27273]
[1766536273179,0.01145554,87294.0,87287.0,0.27273]
[1766536273580,0.01145567,87293.0,87287.0,0.27273]
[1766536273779,0.0114558,87292.0,87287.0,0.27273]
[1766536274455,0.01145567,87293.0,87287.0,0.27226805]
[1766536274831,0.06873379,87294.0,87287.0,0.27226805]
[1766536275033,0.01145554,87294.0,87287.0,0.27226805]
[1766536275459,0.0114558,87292.0,87287.0,0.27226805]
[1766536275662,0.0114558,87292.0,87287.0,0.26781104]
[1766536276079,0.0114558,87292.0,87286.0,1.29e-06]
[1766536277021,0.01145554,87294.0,87286.0,1.29e-06]
[1766536277467,0.01145567,87293.0,87286.0,1.29e-06]
[1766536277670,0.01148,87297.0,87293.0,0.00055]
[1766536277873,0.01148,87297.0,87291.0,0.0981]
[1766536278074,0.01145527,87296.0,87291.0,0.0981]
[1766536278283,0.0114554,87295.0,87291.0,0.0981]
[1766536278547,0.01145527,87296.0,87291.0,0.0981]
[1766536279972,0.01145527,87296.0,87286.0,0.10955788]
[1766536280503,0.01145527,87296.0,87287.0,0.01145645]
[1766536280708,0.02293514,87297.0,87286.0,0.10955788]
[1766536280913,0.01145527,87296.0,87287.0,0.01145645]
[1766536281111,0.01148,87299.0,87296.0,0.00055]
[1766536281524,0.01148,87299.0,87294.0,0.01145554]
[1766536281706,0.01148,87299.0,87296.0,0.01145527]
[1766536282113,0.01148,87302.0,87299.0,0.00055]
[1766536282316,0.01148,87306.0,87299.0,0.00055]
[1766536282516,0.01145409,87305.0,87299.0,0.00055]
[1766536282761,0.01145409,87305.0,87294.0,0.01145554]
[1766536282982,0.01145422,87304.0,87295.0,0.0114554]
[1766536283459,0.01145409,87305.0,87295.0,0.0114554]
[1766536283662,0.04756231,87306.0,87295.0,0.0114554]
[1766536283828,0.02293396,87306.0,87296.0,0.01145527]
[1766536284032,0.28340396,87306.0,87296.0,0.01145527]
[1766536285153,0.01145409,87305.0,87295.0,0.0114554]
[1766536285553,0.01145409,87305.0,87296.0,0.01145527]
[1766536285800,0.28340396,87306.0,87296.0,0.01145527]
[1766536285976,0.28340396,87306.0,87297.0,0.01145514]
[1766536286139,0.01145409,87305.0,87296.0,0.01145527]
[1766536286316,0.01145409,87305.0,87295.0,0.0114554]
[1766536286521,0.01145409,87305.0,87296.0,0.01145527]
[1766536286926,0.28340396,87306.0,87296.0,0.01145527]
[1766536287124,0.27195,87306.0,87297.0,0.01145514]
[1766536287442,0.27195,87306.0,87298.0,0.01145501]
[1766536287646,0.02462492,87305.0,87297.0,0.01145514]
[1766536287855,0.02462492,87305.0,87298.0,0.01145501]
[1766536288066,0.02462492,87305.0,87297.0,0.01145514]
[1766536288281,0.03607901,87305.0,87296.0,0.01145527]
[1766536289079,0.01145422,87304.0,87295.0,0.0114554]
[1766536289280,0.12641422,87304.0,87295.0,0.0114554]
[1766536289514,0.12641422,87304.0,87294.0,0.01145554]
[1766536289917,0.12641422,87304.0,87295.0,0.0114554]
[1766536290121,0.11496,87304.0,87296.0,0.01145527]
[1766536290521,0.12641422,87304.0,87295.0,0.0114554]
[1766536290870,0.11496,87304.0,87296.0,0.01145527]
[1766536291121,0.11496,87304.0,87295.0,0.0114554]
[1766536291425,0.12641422,87304.0,87295.0,0.0114554]
[1766536291834,0.11496,87304.0,87295.0,0.0114554]
[1766536292046,0.05726571,87313.0,87302.0,0.08662]
[1766536292258,0.01148,87313.0,87309.0,8.986e-05]
[1766536292463,0.01148,87313.0,87309.0,0.00019742]
[1766536292676,0.0001,87316.0,87312.0,0.01145317]
[1766536292903,0.01148,87317.0,87313.0,0.01145304]
[1766536293132,0.01148,87326.0,87321.0,0.06871197]
[1766536293347,0.01148,87326.0,87319.0,0.01145226]
[1766536293563,0.01148,87326.0,87317.0,0.13674488]
[1766536293789,0.01148,87326.0,87318.0,0.01145239]
[1766536294022,0.01148,87326.0,87321.0,0.01145199]
[1766536294204,0.01148,87326.0,87319.0,0.01145226]
[1766536294452,0.02293081,87330.0,87320.0,0.06803]
[1766536294662,0.02293081,87330.0,87321.0,0.01145199]
[1766536294881,0.02293081,87330.0,87321.0,0.06803]
[1766536295097,0.02293081,87330.0,87321.0,0.07948199]
[1766536295323,0.01148,87330.0,87321.0,0.06803]
[1766536295531,0.02293081,87330.0,87321.0,0.06803]
[1766536295946,0.02293081,87330.0,87321.0,0.07948199]
[1766536296158,0.01145108,87328.0,87321.0,0.06803]
[1766536296362,0.01145094,87329.0,87321.0,0.06803]
[1766536296723,0.01145108,87328.0,87321.0,0.06803]
[1766536296919,0.01145094,87329.0,87321.0,0.06803]
[1766536297573,0.02293081,87330.0,87321.0,0.07948199]
[1766536298006,0.02293081,87330.0,87321.0,0.06803]
[1766536298204,0.01145094,87329.0,87321.0,0.06803]
[1766536298408,0.01145108,87328.0,87321.0,0.06803]
[1766536298612,0.01145121,87327.0,87321.0,0.06803]
[1766536299053,0.01145108,87328.0,87321.0,0.06803]
[1766536299475,0.01145134,87326.0,87321.0,0.06803]
[1766536300116,0.01145121,87327.0,87321.0,0.06803]
[1766536300544,0.01145108,87328.0,87321.0,0.06803]
[1766536300997,0.02293081,87330.0,87321.0,0.06803]
[1766536301403,0.02293081,87330.0,87321.0,0.07948199]
[1766536301404,0.01148,87330.0,87321.0,0.07948199]
[1766536301848,0.01148,87330.0,87322.0,0.01145186]
[1766536302067,0.04584,87342.0,87329.0,0.01145094]
[1766536302068,0.01148,87334.0,87329.0,0.01145094]
[1766536302282,0.01148,87342.0,87334.0,0.01145029]
[1766536302498,0.000459,87334.0,87332.0,0.06803]
[1766536302708,0.0114499,87337.0,87332.0,0.06803]
[1766536302922,0.01144976,87338.0,87332.0,0.06803]
[1766536303140,0.0114495,87340.0,87332.0,0.06803]
[1766536303362,0.13369937,87341.0,87332.0,0.06803]
[1766536303545,0.0114499,87337.0,87332.0,0.06803]
[1766536306135,0.01144976,87338.0,87332.0,0.06803]
[1766536307032,0.01148,87342.0,87338.0,0.000549]
[1766536307648,0.01148,87342.0,87333.0,0.01145042]
[1766536307852,0.02292924,87342.0,87332.0,0.07948055]
[1766536308216,0.02292924,87342.0,87333.0,0.01145042]
[1766536308417,0.01144937,87341.0,87332.0,0.07948055]
[1766536309217,0.01144937,87341.0,87332.0,0.06803]
[1766536309406,0.01144937,87341.0,87332.0,0.07948055]
[1766536309613,0.01144937,87341.0,87332.0,0.06803]
[1766536309805,0.02292924,87342.0,87333.0,0.01145042]
[1766536310292,0.01144937,87341.0,87332.0,0.07948055]
[1766536310431,0.01144937,87341.0,87332.0,0.06803]
[1766536310638,0.01144976,87338.0,87332.0,0.06748]
[1766536310989,0.0114499,87337.0,87332.0,0.06748]
[1766536311334,0.01144976,87338.0,87329.0,0.01148]
[1766536311740,0.0114495,87340.0,87330.0,0.01145081]
[1766536312247,0.01144963,87339.0,87329.0,0.02293094]
[1766536312785,0.0114495,87340.0,87330.0,0.01145081]
[1766536313206,0.01144976,87338.0,87329.0,0.45985755]
[1766536314166,0.01144963,87339.0,87330.0,0.07847081]
[1766536314492,0.01144976,87338.0,87330.0,0.06702]
[1766536315299,0.01144963,87339.0,87330.0,0.07847081]
[1766536318158,0.01144976,87338.0,87330.0,0.06702]
[1766536319333,0.01144963,87339.0,87330.0,0.07847081]
[1766536320290,0.01144976,87338.0,87330.0,0.06702]
[1766536320712,0.01144963,87339.0,87330.0,0.06702]
[1766536320886,0.01144963,87339.0,87330.0,0.07847081]
[1766536321101,0.01144976,87338.0,87329.0,0.01148]
[1766536321310,0.0572495,87337.0,87329.0,0.01148]
[1766536321510,0.13309976,87338.0,87329.0,0.01148]
[1766536321708,0.13309976,87338.0,87329.0,0.02293094]
[1766536321933,0.12165,87338.0,87329.0,0.02293094]
[1766536322166,0.13309976,87338.0,87329.0,0.02293094]
[1766536323028,0.13309976,87338.0,87330.0,0.01145081]
[1766536323029,0.12165,87338.0,87330.0,0.01145081]
[1766536323253,0.13309976,87338.0,87329.0,0.02293094]
[1766536324241,0.12165,87338.0,87330.0,0.01145081]
[1766536324663,0.12165,87338.0,87331.0,0.01145068]
[1766536325112,0.12165,87338.0,87330.0,0.01145081]
[1766536325507,0.12165,87338.0,87331.0,0.01145068]
[1766536326194,0.12165,87338.0,87329.0,0.02293094]
[1766536326195,0.0114499,87337.0,87329.0,0.02293094]
[1766536326405,0.0114499,87337.0,87329.0,0.01148]
[1766536326611,0.13309976,87338.0,87329.0,0.02293094]
[1766536326823,0.12165,87338.0,87330.0,0.01145081]
[1766536327000,0.12165,87338.0,87329.0,0.02293094]
[1766536327700,0.13309976,87338.0,87329.0,0.02293094]
[1766536327888,0.13309976,87338.0,87329.0,0.02246933]
[1766536329913,0.12165,87338.0,87330.0,0.01145081]
[1766536331499,0.11870726,87338.0,87330.0,0.01145081]
[1766536333853,0.11870726,87338.0,87331.0,0.01145068]
[1766536334386,0.11870726,87338.0,87330.0,0.01145081]
[1766536334866,0.13015702,87338.0,87329.0,0.02246933]
[1766536335424,0.13015702,87338.0,87329.0,0.02217099]
[1766536336260,0.0114499,87337.0,87329.0,0.01072005]
[1766536336636,0.01145055,87332.0,87329.0,0.01072005]
[1766536336842,0.01145055,87332.0,87329.0,0.00203786]
[1766536337578,0.01145042,87333.0,87329.0,0.00203786]
[1766536338620,0.01145055,87332.0,87329.0,0.00203786]
[1766536343396,0.01145042,87333.0,87329.0,0.00203786]
[1766536343596,0.01145016,87335.0,87329.0,0.00203786]
[1766536344060,0.01145029,87334.0,87329.0,0.00203786]
[1766536344604,0.01145016,87335.0,87329.0,0.00203786]
[1766536346155,0.01145042,87333.0,87329.0,0.00203786]
[1766536346354,0.01145055,87332.0,87329.0,0.00203786]
[1766536348072,0.0572495,87337.0,87329.0,0.00203786]
[1766536348281,0.0572495,87337.0,87332.0,0.001099]
[1766536348499,0.0572495,87337.0,87329.0,0.00203786]
[1766536349055,0.05725065,87336.0,87329.0,0.00203786]
[1766536349663,0.01145016,87335.0,87329.0,0.00203786]
[1766536349839,0.01145029,87334.0,87329.0,0.00203786]
[1766536350023,0.01145042,87333.0,87329.0,0.00203786]
[1766536351494,0.01145055,87332.0,87329.0,0.00203786]
[1766536351696,0.01145042,87333.0,87329.0,0.00203786]
[1766536355447,0.01145055,87332.0,87329.0,0.00203786]
[1766536355783,0.01145042,87333.0,87329.0,0.00203786]
[1766536358443,0.01145029,87334.0,87329.0,0.00203786]
[1766536358640,0.01145029,87334.0,87333.0,0.000549]
[1766536358843,0.06870134,87335.0,87333.0,0.000549]
[1766536359096,0.01145029,87334.0,87329.0,0.00203786]
[1766536360099,0.01145016,87335.0,87329.0,0.00203786]
[1766536360444,0.05725147,87334.0,87329.0,0.00203786]
[1766536360645,0.01145055,87332.0,87329.0,0.00203786]
[1766536362970,0.01145042,87333.0,87329.0,0.00203786]
[1766536363284,0.06870163,87335.0,87329.0,0.00203786]
[1766536363624,0.01145029,87334.0,87329.0,0.00203786]
[1766536366864,0.01145016,87335.0,87329.0,0.00203786]
[1766536369207,0.01145042,87333.0,87329.0,0.00203786]
[1766536369436,0.01145029,87334.0,87329.0,0.00203786]
[1766536370850,0.12541016,87335.0,87329.0,0.00203786]
[1766536371458,0.01145029,87334.0,87329.0,0.00203786]
[1766536371624,0.12541016,87335.0,87329.0,0.00203786]
[1766536371820,0.01145029,87334.0,87329.0,0.00203786]
[1766536372224,0.12541016,87335.0,87329.0,0.00203786]
[1766536373549,0.11396,87335.0,87329.0,0.00203786]
[1766536373764,0.12541016,87335.0,87329.0,0.00203786]
[1766536374284,0.11396,87335.0,87329.0,0.00203786]
[1766536374572,0.12541016,87335.0,87329.0,0.00203786]
[1766536374784,0.11396,87335.0,87329.0,0.00203786]
[1766536375479,0.01145003,87336.0,87329.0,0.00203786]
[1766536377205,0.01145016,87335.0,87329.0,0.00203786]
[1766536377410,0.01145029,87334.0,87329.0,0.00203786]
[1766536377605,0.01145042,87333.0,87329.0,0.00203786]
[1766536378676,0.01145055,87332.0,87329.0,0.00203786]
[1766536378860,0.01145042,87333.0,87329.0,0.00203786]
[1766536379823,0.01145055,87332.0,87329.0,0.00203786]
[1766536380223,0.01145042,87333.0,87329.0,0.00203786]
[1766536380478,0.01145016,87335.0,87329.0,0.00203786]
[1766536380954,0.01144963,87339.0,87329.0,0.00203786]
[1766536381146,0.01144976,87338.0,87329.0,0.0134888]
[1766536381307,0.01144976,87338.0,87329.0,0.00203786]
[1766536381944,0.11614,87339.0,87338.0,0.000549]
[1766536382195,0.11559,87339.0,87338.0,0.000549]
[1766536382422,0.0001,87344.0,87340.0,0.0114495]
[1766536382644,0.0001,87344.0,87342.0,0.08186523]
[1766536382645,3.3e-06,87344.0,87342.0,0.08186523]
[1766536382908,3.3e-06,87344.0,87338.0,0.22899438]
[1766536382909,0.11614,87360.0,87354.0,0.05723825]
[1766536383109,0.00055,87354.0,87347.0,0.01148]
[1766536383312,0.01199767,87354.0,87347.0,0.01148]
[1766536383530,0.01144793,87352.0,87347.0,0.01148]
[1766536383728,0.0114478,87353.0,87347.0,0.01148]
[1766536385280,0.01144767,87354.0,87347.0,0.01148]
[1766536385509,0.0114478,87353.0,87347.0,0.01148]
[1766536385717,0.01144767,87354.0,87347.0,0.01148]
[1766536385919,0.01144741,87356.0,87347.0,0.01148]
[1766536386129,0.01144741,87356.0,87347.0,0.02292859]
[1766536386477,0.12758727,87357.0,87348.0,0.01144845]
[1766536386890,0.11614,87357.0,87348.0,0.01144845]
[1766536387063,0.0115544,87360.0,87357.0,0.000549]
[1766536387449,0.01144714,87358.0,87350.0,0.07042]
[1766536387847,0.01144727,87357.0,87350.0,0.07042]
[1766536388978,0.01144741,87356.0,87350.0,0.07042]
[1766536389475,0.01144714,87358.0,87350.0,0.07042]
[1766536389676,0.01144727,87357.0,87350.0,0.07042]
[1766536389840,0.01144741,87356.0,87347.0,0.01148]
[1766536390045,0.01144767,87354.0,87347.0,0.01148]
[1766536390255,0.11614,87355.0,87347.0,0.01148]
[1766536390673,0.11614,87355.0,87348.0,0.01144845]
[1766536393084,0.11614,87355.0,87347.0,0.01148]
[1766536394381,0.11614,87355.0,87348.0,0.01144845]
[1766536394582,0.11614,87355.0,87347.0,0.02292859]
[1766536394790,0.11614,87355.0,87350.0,0.0572409]
[1766536395024,0.11614,87355.0,87352.0,0.01144793]
[1766536396002,0.01370904,87367.0,87359.0,0.06868209]
[1766536396135,0.08026054,87372.0,87369.0,0.0114457]
[1766536396342,0.0004,87381.0,87374.0,0.01144505]
[1766536396544,0.01148,87380.0,87378.0,0.06866661]
[1766536396745,0.0004,87387.0,87384.0,0.01144374]
[1766536396949,0.0004,87387.0,87385.0,0.01370904]
[1766536396950,0.00050748,87387.0,87385.0,0.01370904]
[1766536397152,0.01148,87394.0,87389.0,0.01144308]
[1766536397475,0.01148,87394.0,87388.0,0.01144321]
[1766536397809,0.01148,87394.0,87386.0,0.01144348]
[1766536398332,0.01184269,87392.0,87381.0,0.12717413]
[1766536398536,0.0004,87392.0,87381.0,0.12717413]
[1766536398754,0.0004,87392.0,87382.0,0.05721948]
[1766536399186,0.0004,87392.0,87384.0,0.01144374]
[1766536399422,0.0004,87392.0,87383.0,0.01144387]
[1766536399561,0.0004,87392.0,87384.0,0.01144374]
[1766536400301,0.0004,87392.0,87381.0,0.12717413]
[1766536400446,0.01184269,87392.0,87382.0,0.011444]
[1766536401810,0.0004,87392.0,87384.0,0.01144374]
[1766536402016,0.0004,87392.0,87384.0,0.01148]
[1766536402800,0.01184269,87392.0,87384.0,0.01148]
[1766536403004,0.0004,87392.0,87384.0,0.01148]
[1766536403573,0.0004,87392.0,87385.0,0.01144361]
[1766536403769,0.0004,87392.0,87384.0,0.01148]
[1766536404208,0.01184269,87392.0,87384.0,0.01148]
[1766536405077,0.0004,87392.0,87384.0,0.01148]
[1766536407397,0.0004,87392.0,87384.0,0.02292374]
[1766536407627,0.0004,87392.0,87384.0,0.01148]
[1766536408428,0.0004,87392.0,87385.0,0.01144361]
[1766536408834,0.0004,87392.0,87384.0,0.02292374]
[1766536410844,0.0004,87392.0,87385.0,0.01144361]
[1766536411448,0.0004,87392.0,87386.0,0.01144348]
[1766536412376,0.0004,87392.0,87384.0,0.01148]
[1766536412596,0.01144282,87391.0,87384.0,0.01148]
[1766536412823,0.01144308,87389.0,87378.0,0.01144452]
[1766536413024,0.01144426,87380.0,87369.0,0.0114457]
[1766536413237,0.01144413,87381.0,87370.0,0.03476813]
[1766536413441,0.00010742,87381.0,87371.0,0.01148]
[1766536413826,0.01155155,87381.0,87371.0,0.02292544]
[1766536414029,0.01155155,87381.0,87371.0,0.01148]
[1766536414237,0.00010742,87381.0,87371.0,0.02292544]
[1766536414465,0.05,87374.0,87372.0,0.01144531]
[1766536414677,0.00010742,87381.0,87374.0,0.000549]
[1766536414877,0.01144426,87380.0,87374.0,0.000549]
[1766536415099,0.06870054,87382.0,87371.0,0.01148]
[1766536415302,0.06870054,87382.0,87371.0,0.01158742]
[1766536416037,0.01144439,87379.0,87371.0,0.01158742]
[1766536417337,0.01144426,87380.0,87371.0,0.01158742]
[1766536418961,0.01144439,87379.0,87371.0,0.01158742]
[1766536419371,0.01144426,87380.0,87371.0,0.01158742]
[1766536421073,0.01144439,87379.0,87371.0,0.00010742]
[1766536421254,0.01144439,87379.0,87371.0,0.01158742]
[1766536421893,0.01144426,87380.0,87371.0,0.01158742]
[1766536422743,0.01144452,87378.0,87371.0,0.01122099]
[1766536423529,0.01144439,87379.0,87371.0,0.01122099]
[1766536423929,0.01144452,87378.0,87371.0,0.01122099]
[1766536424902,0.01144465,87377.0,87371.0,0.01122099]
[1766536425129,0.01144479,87376.0,87371.0,0.01122099]
[1766536425416,0.01144465,87377.0,87371.0,0.01122099]
[1766536425974,0.01144465,87377.0,87371.0,9.9e-07]
[1766536426174,0.01144492,87375.0,87371.0,9.9e-07]
[1766536426383,0.01144479,87376.0,87371.0,9.9e-07]
[1766536426612,0.01144492,87375.0,87371.0,9.9e-07]
[1766536426826,0.01144479,87376.0,87371.0,9.9e-07]
[1766536427038,0.01144492,87375.0,87371.0,9.9e-07]
[1766536427410,0.05,87374.0,87371.0,9.9e-07]
[1766536430877,0.05,87374.0,87364.0,0.02289259]
[1766536430878,0.01144544,87371.0,87364.0,0.01144623]
[1766536431168,0.01144583,87368.0,87361.0,0.01148]
[1766536431339,0.0114457,87369.0,87361.0,3e-05]
[1766536432059,0.02292544,87371.0,87361.0,0.01147675]
[1766536432454,0.01144557,87370.0,87361.0,0.01147675]
[1766536433137,0.02292544,87371.0,87361.0,0.01147675]
[1766536433396,0.01144557,87370.0,87361.0,0.01147675]
[1766536433790,0.02296644,87371.0,87361.0,0.01147675]
[1766536434929,0.01144557,87370.0,87361.0,3e-05]
[1766536438013,0.0114457,87369.0,87361.0,3e-05]
[1766536438224,0.0114457,87369.0,87357.0,0.01148]
[1766536438225,0.01144636,87364.0,87357.0,0.01148]
[1766536438434,0.01144662,87362.0,87352.0,0.03434052]
[1766536438640,0.01144636,87364.0,87355.0,0.01144754]
[1766536438845,0.01144636,87364.0,87353.0,0.0229278]
[1766536439029,0.01144662,87362.0,87353.0,0.01148]
[1766536439822,0.05723246,87363.0,87353.0,0.01148]
[1766536439823,0.01144649,87363.0,87353.0,0.01148]
[1766536440225,0.01144662,87362.0,87353.0,0.0229278]
[1766536440429,0.06867862,87364.0,87353.0,0.0229278]
[1766536440430,0.01144636,87364.0,87353.0,0.0229278]
[1766536440793,0.01144636,87364.0,87354.0,0.01144767]
[1766536441126,0.01144649,87363.0,87353.0,0.0229278]
[1766536441312,0.01144531,87372.0,87363.0,0.00055]
[1766536441519,0.0114457,87369.0,87363.0,0.12258]
[1766536441716,0.01144557,87370.0,87363.0,0.12258]
[1766536441994,0.0114457,87369.0,87359.0,0.01144701]
[1766536442266,4.1e-05,87371.0,87360.0,0.14550688]
[1766536442460,0.01144557,87370.0,87362.0,0.12258]
[1766536442665,0.01144583,87368.0,87362.0,0.12258]
[1766536442864,0.000549,87362.0,87358.0,0.01148]
[1766536443252,0.01144596,87367.0,87358.0,0.01148]
[1766536443390,0.01144583,87368.0,87358.0,0.01148]
[1766536443590,0.01144583,87368.0,87358.0,0.02292714]
[1766536443821,0.0114457,87369.0,87359.0,0.01144701]
[1766536444682,0.0114457,87369.0,87358.0,0.02292714]
[1766536444825,0.0114457,87369.0,87360.0,0.01144688]
[1766536445163,0.0114457,87369.0,87358.0,0.02292714]
[1766536445337,0.01144583,87368.0,87359.0,0.01144701]
[1766536445554,0.05,87365.0,87359.0,0.01144701]
[1766536445733,0.05,87365.0,87360.0,0.01144688]
[1766536446168,0.05,87365.0,87359.0,0.01144701]
[1766536446352,0.05,87365.0,87360.0,0.01144688]
[1766536446774,0.05,87365.0,87361.0,0.01144675]
[1766536446992,0.05,87365.0,87360.0,0.01144688]
[1766536447670,0.05,87365.0,87359.0,0.01144701]
[1766536448429,0.03009882,87365.0,87362.0,0.01144662]
[1766536449029,4.1e-05,87371.0,87362.0,0.01144662]
[1766536449674,4.1e-05,87371.0,87363.0,0.01144649]
[1766536450105,4.1e-05,87371.0,87364.0,0.13402636]
[1766536451674,0.0001,87374.0,87368.0,0.12258]
[1766536451884,0.01148,87377.0,87370.0,0.12258]
[1766536452750,0.01144308,87389.0,87377.0,0.01144465]
[1766536452963,0.01148,87384.0,87377.0,0.01144465]
[1766536453565,0.02292374,87384.0,87374.0,0.01144505]
[1766536453707,0.01144387,87383.0,87374.0,0.01144505]
[1766536454438,0.01144387,87383.0,87373.0,0.01144518]
[1766536454641,0.02292374,87384.0,87373.0,0.01144518]
[1766536455020,0.01144387,87383.0,87373.0,0.01144518]
[1766536455239,0.011444,87382.0,87372.0,0.01144531]
[1766536455448,0.011444,87382.0,87371.0,0.13402544]
[1766536455617,0.01144426,87380.0,87371.0,0.13402544]
[1766536455816,0.01144413,87381.0,87371.0,0.13402544]
[1766536456562,0.06866333,87383.0,87372.0,0.12258]
[1766536456563,0.06866324,87383.0,87372.0,0.12258]
[1766536456763,0.02292374,87384.0,87373.0,0.01144518]
[1766536457119,0.011444,87382.0,87374.0,0.13406]
[1766536457826,0.01144413,87381.0,87374.0,0.13406]
[1766536457972,0.011444,87382.0,87374.0,0.13406]
[1766536458192,0.01144413,87381.0,87374.0,0.13406]
[1766536458395,0.011444,87382.0,87374.0,0.13406]
[1766536458725,0.01144413,87381.0,87374.0,0.13406]
[1766536458956,0.01144426,87380.0,87374.0,0.13406]
[1766536459127,0.01144465,87377.0,87374.0,0.133511]
[1766536459327,0.06866624,87380.0,87374.0,0.133511]
[1766536459478,0.01144413,87381.0,87374.0,0.133511]
[1766536460329,0.01144426,87380.0,87374.0,0.133511]
[1766536460759,0.01144439,87379.0,87374.0,0.133511]
[1766536460918,0.01144426,87380.0,87374.0,0.133511]
[1766536461515,0.01144413,87381.0,87374.0,0.133511]
[1766536461757,0.01144387,87383.0,87374.0,0.133511]
[1766536462184,0.011444,87382.0,87374.0,0.133511]
[1766536462388,0.0686648,87381.0,87374.0,0.133511]